fUSD/lending_fUSD_20240801
["ID","MTS","AMOUNT","RATE_DAILY","PERIOD"]
[333807000,1722522617613,800.0,0.00026959,120]
[333807009,1722522632638,-242.0,8.411e-05,2]
[333807010,1722522632648,-300.0,8.411e-05,2]
[333807011,1722522632657,-1632.6662692,8.412e-05,2]
[333807012,1722522632667,-696.8,8.413e-05,2]
[333807013,1722522632676,-420.0,9.252e-05,2]
[333807014,1722522632686,-542.32179846,0.0001,2]
[333807015,1722522632695,-2304.68537697,0.00010069,2]
[333807016,1722522632707,-5304.33933746,0.00010069,2]
[333807017,1722522632739,-1740.0,0.00010069,2]
[333807018,1722522632758,-418.9295176,0.00010069,2]
[333807019,1722522632770,-1312.15,0.00010069,2]
[333807020,1722522632781,-5735.90900312,0.00010069,2]
[333807021,1722522632792,-7083.98676485,0.00010069,2]
[333807022,1722522632801,-173.87,0.00010076,2]
[333807023,1722522632810,-587.0,0.00010177,2]
[333807024,1722522632819,-236.40881395,0.00010196,2]
[333807025,1722522632828,-8761.46,0.00010331,2]
[333807026,1722522632838,-1298.77,0.00010386,2]
[333807027,1722522632848,-150.0,0.00010672,2]
[333807028,1722522632858,-14413.0,0.00010673,2]
[333807029,1722522632867,-696.8,0.00010677,2]
[333807030,1722522632877,-3289.65,0.00010792,2]
[333807031,1722522632887,-25684.2702943,0.0001088,2]
[333807032,1722522632897,-169.86939256,0.000109,2]
[333807033,1722522632907,-173.6929426,0.000109,2]
[333807034,1722522632918,-705.48876574,0.000109,2]
[333807035,1722522632929,-1017.48071706,0.0001093,2]
[333807036,1722522632940,-8209.5,0.00010999,2]
[333807037,1722522632950,-500.0,0.00010999,2]
[333807038,1722522632960,-500.0,0.00010999,2]
[333807039,1722522632970,-500.0,0.00010999,2]
[333807040,1722522632980,-500.0,0.00010999,2]
[333807041,1722522632989,-500.0,0.00010999,2]
[333807042,1722522632999,-292.91412414,0.00010999,2]
[333807043,1722522633008,-200.0,0.00011,2]
[333807044,1722522633018,-390321.23496265,0.00011,2]
[333807046,1722522637717,-3128.1510318,0.00011,2]
[333807047,1722522637731,-37334.04455343,0.00011,2]
[333807201,1722522639585,-373.81,0.00010088,2]
[333807202,1722522639595,-13166.99,0.00011,2]
[333807204,1722522639606,-10965.66744729,0.00011,2]
[333807218,1722522639726,-3456.77551593,0.00011,2]
[333807256,1722522640081,-51.29591435,0.00011,2]
[333807275,1722522640263,-344.62556429,0.00011,2]
[333807278,1722522640277,-461.75544879,0.00011,2]
[333807660,1722522644231,-666.41,0.00011,2]
[333807662,1722522644243,-100982.68269504,0.00011,2]
[333807665,1722522644260,-711.66079676,0.00011,2]
[333807667,1722522644271,-1507.29,0.00011,2]
[333807670,1722522644287,-1909.90824921,0.00011,2]
[333807672,1722522644298,-45835.2100006,0.00011,2]
[333807674,1722522644310,-302073.48116746,0.00011,2]
[333807676,1722522644321,-3011.60439949,0.00011,2]
[333807678,1722522644332,-7728.56351489,0.00011,2]
[333807681,1722522644345,-3400.0,0.00011,2]
[333807683,1722522644356,-728.22246321,0.00011,2]
[333807756,1722522645738,-300.0,0.000104,3]
[333807758,1722522645748,-243.09379024,0.00011,2]
[333807760,1722522645759,-516568.79235805,0.00011,2]
[333807762,1722522645770,-359.33199684,0.00011,2]
[333807764,1722522645781,-973.24910627,0.00011,2]
[333807766,1722522645793,-1097.77484942,0.00011,2]
[333807769,1722522645807,-53239.95115109,0.00011,2]
[333807772,1722522645839,-4404.63103717,0.00011,2]
[333807773,1722522645851,-3368.7836437,0.00011,2]
[333807776,1722522645862,-400.71430661,0.00011,2]
[333807779,1722522645891,-587.96619736,0.00011,2]
[333807786,1722522645939,-590.59,0.00011,2]
[333807788,1722522645951,-643.8,0.00011,2]
[333807790,1722522645962,-4136.99727924,0.00011,2]
[333807797,1722522646600,-976130.85309527,0.00011,2]
[333807798,1722522646612,-909.57259888,0.00011,2]
[333807799,1722522646624,-1131.66063473,0.00011,2]
[333807800,1722522646636,-973.854934,0.00011,2]
[333807801,1722522677321,800.0,0.00026959,120]
[333807802,1722522737944,800.0,0.00026959,120]
[333807803,1722522746190,307.68220614,0.00025,90]
[333807804,1722522792483,500.0,0.00025169,120]
[333807805,1722522793328,500.0,0.00026053,120]
[333807806,1722522793752,500.0,0.00026936,120]
[333807807,1722522796795,800.0,0.00026959,120]
[333807808,1722522799626,1000.0,0.00024932,120]
[333807809,1722522813507,500.0,0.00025084,120]
[333807810,1722522813997,500.0,0.00026393,120]
[333807811,1722522857914,800.0,0.00026959,120]
[333807812,1722522874255,1000.0,0.00027,120]
[333807813,1722522883036,1000.0,0.00027,120]
[333807814,1722522890012,1000.0,0.00027,120]
[333807815,1722522895822,1000.0,0.00027,120]
[333807816,1722522903211,1000.0,0.00027,120]
[333807817,1722522908958,1000.0,0.00027,120]
[333807818,1722522916134,1000.0,0.00027,120]
[333807819,1722522923286,1000.0,0.00027,120]
[333807820,1722522927664,1000.0,0.00027,120]
[333807821,1722522934699,1074.855021,0.00027,120]
[333807822,1722523133210,621.73904671,0.00027,120]
[333807824,1722523315084,253.29,0.00025,60]
[333807825,1722523347178,1000.0,0.00025,60]
[333807826,1722523355356,1000.0,0.00025,60]
[333807828,1722523432392,1500.27,0.00025,60]
[333807830,1722523473268,1462.77644628,0.00025,60]
[333807835,1722523543625,1000.0,0.00027,120]
[333807840,1722523616957,1462.75,0.00025,60]
[333807842,1722523732063,1462.75,0.00025,60]
[333807872,1722523831801,-672.55,8.219e-05,2]
[333807874,1722523831810,-112.43522457,9.68e-05,2]
[333807882,1722523831880,-2630.0,9.68e-05,2]
[333807883,1722523831891,-2710.16757673,9.68e-05,2]
[333807884,1722523831903,-232.7371987,9.68e-05,2]
[333807885,1722523831913,-452.31704865,9.68e-05,2]
[333807886,1722523831925,-135.64914871,9.68e-05,2]
[333807887,1722523831935,-500.0,9.688e-05,2]
[333807888,1722523831944,-300.0,9.724e-05,2]
[333807889,1722523831954,-7491.68500851,9.725e-05,2]
[333807890,1722523831966,-965.40882909,9.725e-05,2]
[333807891,1722523831988,-3594.9461624,9.725e-05,2]
[333807892,1722523831998,-522.88,9.77e-05,2]
[333807893,1722523832007,-8637.67473967,9.77e-05,2]
[333807894,1722523832016,-250.0,9.842e-05,2]
[333807895,1722523832026,-150.52,9.844e-05,2]
[333807896,1722523832035,-1509.56,9.877e-05,2]
[333807897,1722523832045,-150.99,9.877e-05,2]
[333807898,1722523832055,-150.0,9.918e-05,2]
[333807899,1722523832066,-1000.0,9.955e-05,2]
[333807900,1722523832076,-200.0,9.955e-05,2]
[333807901,1722523832086,-399.57,0.00010035,2]
[333807902,1722523832096,-1526.81,0.00010134,2]
[333807903,1722523832105,-173.88,0.00010187,2]
[333807904,1722523832116,-300.0,0.000104,3]
[333807905,1722523832125,-430.0,0.00010461,2]
[333807906,1722523832134,-672.55,0.00010465,2]
[333807907,1722523832144,-2430.1215688,0.000105,2]
[333807908,1722523832154,-700.0,0.000105,3]
[333807909,1722523832164,-1000.0,0.000106,3]
[333807910,1722523832174,-420.0,0.00010696,2]
[333807911,1722523832183,-1400.0,0.000107,3]
[333807912,1722523832193,-4471.6253,0.000108,2]
[333807913,1722523832202,-1502.3093,0.000108,2]
[333807914,1722523832212,-282.7298,0.000108,2]
[333807915,1722523832222,-1700.0,0.000108,3]
[333807916,1722523832231,-150.0,0.00010899,2]
[333807917,1722523832240,-220.07077513,0.00010899,2]
[333807918,1722523832249,-682.01992922,0.00010899,2]
[333807919,1722523832258,-86927.3058,0.000109,2]
[333807920,1722523832268,-377.9934,0.000109,2]
[333807921,1722523832278,-100000.0,0.000109,2]
[333807922,1722523832287,-165.01000427,0.000109,2]
[333807923,1722523832297,-300.0,0.000109,3]
[333807924,1722523832306,-199.04006681,0.000109,2]
[333807925,1722523832317,-173.6929426,0.000109,2]
[333807927,1722523832326,-250.0,0.00010959,2]
[333807929,1722523832335,-286.69,0.0001099,2]
[333807930,1722523832344,-3373.42072162,0.00010998,2]
[333807931,1722523832354,-692.94147987,0.00010999,2]
[333807932,1722523832363,-200.0,0.00011,2]
[333807933,1722523832372,-679276.74529848,0.00011,2]
[333807934,1722523832383,-374.10436896,0.00011,2]
[333807935,1722523832394,-258.76851609,0.00011,2]
[333807936,1722523832406,-3674.28117892,0.00011,2]
[333807937,1722523832418,-863.503638,0.00011,2]
[333807938,1722523832429,-720.0,0.00011,2]
[333807939,1722523832445,-397.08384421,0.00011,2]
[333807940,1722523832457,-1578.55756815,0.00011,2]
[333807941,1722523832468,-314.26413413,0.00011,2]
[333807942,1722523832481,-1017.85224013,0.00011,2]
[333807943,1722523832492,-1032.40645548,0.00011,2]
[333807944,1722523832511,-2025.59405055,0.00011,2]
[333807945,1722523832523,-2637.79881283,0.00011,2]
[333807946,1722523832539,-1935.23226309,0.00011,2]
[333807947,1722523832555,-664.03948097,0.00011,2]
[333807948,1722523832571,-709.41557695,0.00011,2]
[333807949,1722523832583,-59373.33107145,0.00011,2]
[333808051,1722523839116,-680.69795843,0.00011,2]
[333808055,1722523839147,-13436.81318337,0.00011,2]
[333808057,1722523839158,-772.90361753,0.00011,2]
[333808059,1722523839169,-668.44497258,0.00011,2]
[333808062,1722523839189,-743.06562854,0.00011,2]
[333808064,1722523839200,-348.54050699,0.00011,2]
[333808067,1722523839211,-569.55468035,0.00011,2]
[333808069,1722523839222,-493.97366847,0.00011,2]
[333808070,1722523839232,-874.40709415,0.00011,2]
[333808071,1722523839243,-1359.73224977,0.00011,2]
[333808072,1722523839253,-3938.43215216,0.00011,2]
[333808073,1722523839310,-677.76867827,0.00011,2]
[333808074,1722523839325,-1933.29970038,0.00011,2]
[333808140,1722523839914,-800.02071133,0.00011,2]
[333808142,1722523839925,-753.83647302,0.00011,2]
[333808144,1722523839936,-1536.70302832,0.00011,2]
[333808146,1722523839948,-662.44404333,0.00011,2]
[333808148,1722523839959,-129768.88104949,0.00011,2]
[333808154,1722523840009,-625.12668149,0.00011,2]
[333808156,1722523840020,-313.497,0.00011,2]
[333808167,1722523840116,-306.09729367,0.00011,2]
[333808169,1722523840129,-606.73026532,0.00011,2]
[333808172,1722523840140,-549.58388816,0.00011,2]
[333808174,1722523840151,-526.41,0.00011,2]
[333808176,1722523840163,-659.97643164,0.00011,2]
[333808178,1722523840174,-193225.68026688,0.00011,2]
[333808183,1722523840217,-11776.50885672,0.00011,2]
[333808186,1722523840229,-2727.47376045,0.00011,2]
[333808188,1722523840240,-2771.17794119,0.00011,2]
[333808230,1722523840645,-2202.11989541,0.00011,2]
[333808233,1722523840660,-272.12555121,0.00011,2]
[333808460,1722523842945,-7233.04009136,0.00011,2]
[333808462,1722523842957,-5879.8,0.00011,2]
[333808464,1722523842969,-705.55808659,0.00011,2]
[333808470,1722523843023,-696.04615242,0.00011,2]
[333808472,1722523843034,-1182.06463682,0.00011,2]
[333808487,1722523843189,-5593.04588729,0.00011,2]
[333808490,1722523843201,-1612.32159237,0.00011,2]
[333808492,1722523843213,-369.04840763,0.00011,2]
[333808494,1722523843224,-684.0410597,0.00011,2]
[333808496,1722523843235,-659.93565516,0.00011,2]
[333808498,1722523843247,-437.31951918,0.00011,2]
[333808500,1722523843258,-65961.33924723,0.00011,2]
[333808502,1722523843270,-1017.312,0.00011,2]
[333808504,1722523843282,-16663.41501804,0.00011,2]
[333808509,1722523843328,-696.96508196,0.00011,2]
[333808512,1722523843339,-676.20493483,0.00011,2]
[333808514,1722523843351,-313.3815487,0.00011,2]
[333808740,1722523846162,-416.0689448,0.00011,2]
[333808742,1722523846175,-876.69000001,0.00011,2]
[333808744,1722523846187,-690.46494574,0.00011,2]
[333808753,1722523846264,-735.16751452,0.00011,2]
[333808755,1722523846276,-392.76310825,0.00011,2]
[333808757,1722523846288,-10581.37964139,0.00011,2]
[333808766,1722523846363,-322.8916,0.00011,2]
[333808768,1722523846375,-567.96560199,0.00011,2]
[333808771,1722523846386,-683.64962444,0.00011,2]
[333808779,1722523846466,-668064.2263829,0.00011,2]
[333808782,1722523846478,-6438.399,0.00011,2]
[333808784,1722523846489,-908.66678136,0.00011,2]
[333808786,1722523846500,-342.57378,0.00011,2]
[333808788,1722523846512,-594.81,0.00011,2]
[333809305,1722523879500,2500.28,0.00025,60]
[333809306,1722523886478,380.28375491,0.00025,90]
[333809307,1722523889440,329.95539117,0.00027,120]
[333809308,1722523935546,329.95539117,0.00027,120]
[333809309,1722524008276,500.0,0.00026094,120]
[333809310,1722524008699,500.0,0.00026572,120]
[333809311,1722524168837,1000.0,0.00025,120]
[333809312,1722524185042,1000.0,0.00026,120]
[333809313,1722524227116,328.13788846,0.00027,120]
[333809314,1722524240103,328.13788846,0.00027,120]
[333809315,1722524248461,640.6894423,0.00027,120]
[333809316,1722524249331,1462.75,0.00025,60]
[333809317,1722524261259,600.8875922,0.00027,120]
[333809318,1722524318366,328.13788846,0.00027,120]
[333809319,1722524324860,640.6894423,0.00027,120]
[333809320,1722524344655,600.8875922,0.00027,120]
[333809324,1722524497005,1462.75,0.00025,60]
[333809325,1722524513662,1462.75,0.00025,60]
[333809327,1722524727642,300.0,0.00025,60]
[333809334,1722524953723,1200.0,0.00025,60]
[333809361,1722525032407,-704.09,8.219e-05,2]
[333809363,1722525032417,-736.34885463,9.705e-05,2]
[333809366,1722525032429,-2059.93188693,9.705e-05,2]
[333809367,1722525032438,-200.0,9.705e-05,2]
[333809368,1722525032448,-551.06,9.734e-05,2]
[333809369,1722525032457,-892.45,9.778e-05,2]
[333809370,1722525032467,-4030.0,9.778e-05,2]
[333809371,1722525032476,-959.1,9.85e-05,2]
[333809376,1722525032907,-250.0,9.858e-05,2]
[333809379,1722525032931,-579.27,9.892e-05,2]
[333809381,1722525032942,-173.87,9.904e-05,2]
[333809382,1722525032951,-454.42700126,9.971e-05,2]
[333809383,1722525032974,-1392.98299874,9.971e-05,2]
[333809384,1722525032983,-1000.0,0.00010025,2]
[333809385,1722525032993,-961.92,0.00010037,2]
[333809386,1722525033002,-300.0,0.000104,3]
[333809387,1722525033013,-704.09,0.00010466,2]
[333809388,1722525033023,-600.0,0.000105,3]
[333809389,1722525033038,-300.0,0.00010599,2]
[333809390,1722525033050,-900.0,0.000106,3]
[333809391,1722525033060,-1300.0,0.000107,3]
[333809392,1722525033070,-388.22,0.00010757,2]
[333809393,1722525033080,-753.38422047,0.0001079,2]
[333809394,1722525033090,-7549.7804,0.000108,2]
[333809395,1722525033100,-393.2263,0.000108,2]
[333809396,1722525033111,-1600.0,0.000108,3]
[333809397,1722525033121,-244.81,0.00010886,2]
[333809398,1722525033131,-692.74,0.00010886,2]
[333809399,1722525033141,-242.0,0.0001089,2]
[333809400,1722525033151,-150.0,0.00010899,2]
[333809401,1722525033161,-102529.629,0.000109,2]
[333809402,1722525033171,-165.01000426,0.000109,2]
[333809403,1722525033181,-216.76386368,0.000109,2]
[333809404,1722525033191,-857.72224663,0.000109,2]
[333809405,1722525033202,-300.0,0.000109,3]
[333809406,1722525033212,-285.50273632,0.000109,2]
[333809407,1722525033222,-182.9155438,0.000109,2]
[333809408,1722525033232,-180.14467948,0.000109,2]
[333809409,1722525033243,-278.107353,0.00010928,2]
[333809410,1722525033254,-502.456116,0.00010928,2]
[333809411,1722525033265,-163.983566,0.00010928,2]
[333809412,1722525033275,-181.117558,0.00010928,2]
[333809413,1722525033289,-456.528838,0.00010928,2]
[333809414,1722525033299,-250.0,0.00010959,2]
[333809415,1722525033311,-403.05847124,0.00010998,2]
[333809416,1722525033321,-654.82093907,0.00010999,3]
[333809417,1722525033331,-300.07783601,0.00011,2]
[333809418,1722525033342,-2000.0,0.00011,3]
[333809419,1722525033353,-47428.71212454,0.00011,2]
[333809420,1722525033366,-627.85298596,0.00011,2]
[333809421,1722525033378,-20597.09498396,0.00011,2]
[333809422,1722525033408,-31948.0,0.00011,2]
[333809423,1722525033419,-474.01370317,0.00011,2]
[333809424,1722525033430,-3314.06885547,0.00011,2]
[333809425,1722525033442,-3449.9999995,0.00011,2]
[333809432,1722525038215,-654.18357388,0.00011,2]
[333809440,1722525038396,-6701.46418999,0.00011,2]
[333809441,1722525038409,-358.46694113,0.00011,2]
[333809442,1722525038421,-1798.23546756,0.00011,2]
[333809443,1722525038433,-728.6994,0.00011,2]
[333809444,1722525038445,-518.37260081,0.00011,2]
[333809445,1722525038457,-32717.33203222,0.00011,2]
[333809446,1722525038521,-320.104785,0.00011,2]
[333809447,1722525038537,-1483.64960183,0.00011,2]
[333809491,1722525043304,-990896.22231253,0.00011,2]
[333809492,1722525043314,-2311973.62928111,0.00011,2]
[333809493,1722525043327,-405486.24906779,0.00011,2]
[333809494,1722525043338,-145134.3088819,0.00011,2]
[333809495,1722525043350,-267177.25393104,0.00011,2]
[333809496,1722525043361,-30419.15817392,0.00011,2]
[333809497,1722525043372,-70027.20968745,0.00011,2]
[333809498,1722525043389,-27791.38197488,0.00011,2]
[333809499,1722525043404,-16719.03507,0.00011,2]
[333809500,1722525043423,-54665.68703362,0.00011,2]
[333809501,1722525043434,-70652.41794837,0.00011,2]
[333809502,1722525043446,-191756.27494176,0.00011,2]
[333809503,1722525043457,-339.035,0.00011,2]
[333809504,1722525043477,-1922.61,0.00011,2]
[333809505,1722525043488,-152320.0,0.00011,2]
[333809506,1722525043576,-5071.51840918,0.00011,2]
[333809507,1722525043588,-1329.54172578,0.00011,2]
[333809508,1722525043599,-1732.8790104,0.00011,2]
[333809509,1722525043610,-4264.4118259,0.00011,2]
[333809510,1722525043622,-3192.19781361,0.00011,2]
[333809511,1722525043633,-228262.60492093,0.00011,2]
[333809512,1722525043644,-64026.25000001,0.00011,2]
[333809515,1722525043663,-699.55983868,0.00011,2]
[333809517,1722525043676,-321.20088015,0.00011,2]
[333809518,1722525043687,-1558.74896431,0.00011,2]
[333809519,1722525043699,-2979.04103865,0.00011,2]
[333809520,1722525043712,-6529.22939768,0.00011,2]
[333809738,1722525046751,-2924.57046392,0.00011,2]
[333809741,1722525046763,-1604.936755,0.00011,2]
[333809744,1722525046774,-1572.49999999,0.00011,2]
[333809747,1722525046786,-1920.57,0.00011,2]
[333809750,1722525046798,-500.0,0.00011,2]
[333809752,1722525046809,-2824.64846527,0.00011,2]
[333809755,1722525046821,-4653.66294273,0.00011,2]
[333809758,1722525046833,-5487.76202675,0.00011,2]
[333809761,1722525046844,-1434.79165165,0.00011,2]
[333809762,1722525046856,-598.26005,0.00011,2]
[333809765,1722525046867,-16500.0,0.00011,2]
[333809770,1722525046882,-330.1875294,0.00011,2]
[333809773,1722525046895,-3082.7150898,0.00011,2]
[333809775,1722525046906,-193248.13289371,0.00011,2]
[333809778,1722525046918,-291.35233723,0.00011,2]
[333809785,1722525046979,-1488.3590197,0.00011,2]
[333809786,1722525046994,-500.0,0.00011,2]
[333809788,1722525047006,-266.39857557,0.00011,2]
[333809791,1722525047019,-522.88362862,0.00011,2]
[333809793,1722525047030,-847.7239925,0.00011,2]
[333809795,1722525047042,-13639.224,0.00011,2]
[333809803,1722525047089,-1303.17693193,0.00011,2]
[333809806,1722525047100,-673.0539622,0.00011,2]
[333809810,1722525047112,-2973.67898142,0.00011,2]
[333809813,1722525047123,-1871.56046679,0.00011,2]
[333810741,1722525150332,51.29591435,8.145e-05,2]
[333810742,1722525202608,500.0,0.00025895,120]
[333810743,1722525218344,-108.98408565,8.145e-05,2]
[333810744,1722525218367,-500.0,8.145e-05,2]
[333810745,1722525218391,-1267.89314635,8.145e-05,2]
[333810746,1722525218414,-692.66620014,8.145e-05,2]
[333810747,1722525218437,-772.22502369,8.145e-05,2]
[333810748,1722525218460,-6658.23154417,8.145e-05,2]
[333810749,1722525218595,-954.31671487,8.145e-05,2]
[333810750,1722525220929,1370.27445908,8.145e-05,2]
[333810751,1722525220989,262.01031941,8.145e-05,2]
[333810752,1722525221095,1284.09297727,8.145e-05,2]
[333810753,1722525221180,1859.58219571,8.145e-05,2]
[333810754,1722525221284,2331.39853397,8.145e-05,2]
[333810755,1722525221869,227.57356757,8.145e-05,2]
[333810756,1722525227180,797.78649344,8.145e-05,2]
[333810757,1722525227331,871.55601316,8.145e-05,2]
[333810758,1722525229329,41.40872552,8.145e-05,2]
[333810759,1722525229351,186.16484205,8.145e-05,2]
[333810760,1722525229689,9813.83515795,8.145e-05,2]
[333810761,1722525229713,9011.13015096,8.145e-05,2]
[333810762,1722525230379,988.86984904,8.145e-05,2]
[333810763,1722525230402,10000.0,8.145e-05,2]
[333810764,1722525230425,10000.0,8.145e-05,2]
[333810765,1722525230448,10000.0,8.145e-05,2]
[333810766,1722525230471,10000.0,8.145e-05,2]
[333810767,1722525230496,10000.0,8.145e-05,2]
[333810768,1722525230518,10000.0,8.145e-05,2]
[333810769,1722525328360,-300.0,8.144e-05,2]
[333810770,1722525328383,-9700.0,8.145e-05,2]
[333810771,1722525328915,-10000.0,8.145e-05,2]
[333810772,1722525329476,-10000.0,8.145e-05,2]
[333810773,1722525330043,-10000.0,8.145e-05,2]
[333810774,1722525330639,-10000.0,8.145e-05,2]
[333810775,1722525341964,171.96606395,5e-05,2]
[333810776,1722525385283,1284.09297727,5e-05,2]
[333810777,1722525385656,685.17544516,5e-05,2]
[333810778,1722525386239,155.0,5e-05,2]
[333810779,1722525388032,961.66666097,5e-05,2]
[333810780,1722525388188,216.42011758,5e-05,2]
[333810781,1722525396429,155.0,5e-05,2]
[333810782,1722525396495,155.0,5e-05,2]
[333810783,1722525396537,155.2753588,5e-05,2]
[333810784,1722525396570,155.0,5e-05,2]
[333810785,1722525396603,5905.40337627,5e-05,2]
[333810786,1722525396625,10000.0,5e-05,2]
[333810787,1722525396647,4469.94275445,5e-05,2]
[333810788,1722525396689,5530.05724555,6.061e-05,2]
[333810789,1722525396710,3743.53145263,6.061e-05,2]
[333810790,1722525396744,871.55601316,5e-05,2]
[333810791,1722525396821,158.93327115,5e-05,2]
[333810792,1722525398388,790.43228125,5e-05,2]
[333810793,1722525398516,411.60345226,5e-05,2]
[333810794,1722525398815,155.0,5e-05,2]
[333810795,1722525398887,3868.94352955,5e-05,2]
[333810796,1722525398911,10000.0,5e-05,2]
[333810797,1722525398940,10000.0,5e-05,2]
[333810798,1722525398964,10000.0,5e-05,2]
[333810799,1722525398987,10000.0,5e-05,2]
[333810800,1722525399014,139781.48557234,5e-05,2]
[333810801,1722525399046,692.66620014,5e-05,2]
[333810802,1722525402219,599.10370968,5e-05,2]
[333810803,1722525403914,753.56029024,5e-05,2]
[333810804,1722525403989,158.93327115,5e-05,2]
[333810805,1722525405452,797.78649344,5e-05,2]
[333810806,1722525405653,1309.06994225,5e-05,2]
[333810807,1722525406223,1370.27445908,5e-05,2]
[333810808,1722525407901,485.24511859,5e-05,2]
[333810809,1722525412171,20375.34613072,5e-05,2]
[333810810,1722525414527,363.72095219,5e-05,2]
[333810811,1722525419779,291.36870266,5e-05,2]
[333810812,1722525420510,7572.79673936,5e-05,2]
[333810813,1722525420629,1284.09297727,6.061e-05,2]
[333810814,1722525421484,1370.27445908,5e-05,2]
[333810815,1722525423894,227.57356757,5e-05,2]
[333810816,1722525424220,18824.96530891,5e-05,2]
[333810817,1722525431472,1267.89314635,5e-05,2]
[333810818,1722525431709,180.35009798,6.061e-05,2]
[333810819,1722525433096,155.19797502,6.061e-05,2]
[333810820,1722525435666,1309.06994225,5e-05,2]
[333810821,1722525436012,411.60345226,6.061e-05,2]
[333810822,1722525437212,18824.96530891,5e-05,2]
[333810823,1722525438030,961.66666097,6.061e-05,2]
[333810824,1722525440296,204.83236979,6.061e-05,2]
[333810825,1722525443589,5346.87984952,6.061e-05,2]
[333810826,1722525444072,155.0,6.061e-05,2]
[333810827,1722525444761,588.30004109,6.061e-05,2]
[333810828,1722525445791,871.55601316,6.061e-05,2]
[333810829,1722525447902,155.0,6.061e-05,2]
[333810830,1722525450325,2053.73074061,6.061e-05,2]
[333810831,1722525451320,158.93327115,6.061e-05,2]
[333810832,1722525451703,790.43228125,6.061e-05,2]
[333810833,1722525451816,225.176861,5e-05,2]
[333810834,1722525454609,692.66620014,6.061e-05,2]
[333810835,1722525456745,500.0,0.00027,120]
[333810836,1722525458619,797.78649344,6.061e-05,2]
[333810837,1722525458660,1284.09297727,6.061e-05,2]
[333810838,1722525458699,4577.87295744,6.061e-05,2]
[333810839,1722525458747,363.72095219,6.061e-05,2]
[333810840,1722525468699,500.0,0.00027,120]
[333810841,1722525468755,485.24511859,5e-05,2]
[333810842,1722525468962,291.36870266,6.061e-05,2]
[333810843,1722525469809,500.0,0.00027,120]
[333810844,1722525470751,500.0,0.00027,120]
[333810845,1722525472018,500.0,0.00027,120]
[333810846,1722525473173,500.0,0.00027,120]
[333810847,1722525474322,500.0,0.00027,120]
[333810848,1722525474540,951.84623742,6.061e-05,2]
[333810849,1722525474701,18824.96530891,6.061e-05,2]
[333810850,1722525475284,500.0,0.00027,120]
[333810851,1722525476228,500.0,0.00027,120]
[333810852,1722525478248,500.0,0.00027,120]
[333810853,1722525478289,1309.06994225,6.061e-05,2]
[333810854,1722525478327,7584.7146159,6.061e-05,2]
[333810855,1722525478369,1411.78593063,6.061e-05,2]
[333810856,1722525478432,500.0,0.00027,120]
[333810857,1722525479298,500.0,0.00027,120]
[333810858,1722525480120,500.0,0.00027,120]
[333810859,1722525480851,176.89882039,6.061e-05,2]
[333810860,1722525480988,500.0,0.00027,120]
[333810861,1722525481719,180.35009798,6.061e-05,2]
[333810862,1722525481832,500.0,0.00027,120]
[333810863,1722525481862,871.55601316,6.061e-05,2]
[333810864,1722525482763,500.0,0.00027,120]
[333810865,1722525483545,500.0,0.00027,120]
[333810866,1722525484446,500.0,0.00027,120]
[333810867,1722525485235,500.0,0.00027,120]
[333810868,1722525485971,500.0,0.00027,120]
[333810869,1722525487512,500.0,0.00027,120]